fUST/lending_fUST_20251112
["ID","MTS","AMOUNT","RATE_DAILY","PERIOD"]
[393740068,1762959049711,-307.891048,0.0003016,2]
[393740069,1762959049721,-819.04131447,0.00030443,2]
[393740070,1762959049731,-260.0,0.0003047,2]
[393740071,1762959049741,-1000.0,0.00030521,5]
[393740072,1762959049750,-300.2064069,0.000308,30]
[393740073,1762959049760,-2387.67044345,0.00030808,2]
[393740074,1762959049770,-831.66,0.00030847,2]
[393740075,1762959049780,-360.0,0.00031018,2]
[393740076,1762959049794,-1360.91942769,0.00031068,5]
[393740077,1762959049804,-460.0,0.00031566,2]
[393740078,1762959049814,-586.205641,0.00031621,30]
[393740079,1762959049825,-372.6516575,0.00031622,30]
[393740080,1762959049835,-300.2064069,0.00031622,30]
[393740081,1762959049845,-300.2064069,0.00031622,30]
[393740082,1762959049855,-300.2064069,0.00031622,30]
[393740083,1762959049865,-300.2064069,0.00031622,30]
[393740084,1762959049875,-300.2064069,0.00031622,30]
[393740085,1762959049885,-300.2064069,0.00031622,30]
[393740086,1762959049895,-599.8195185,0.00031622,30]
[393740087,1762959049904,-300.2064069,0.00031622,30]
[393740088,1762959049913,-300.2064069,0.00031622,30]
[393740089,1762959049923,-823.0,0.00031767,2]
[393740090,1762959049932,-160.0,0.00031886,3]
[393740091,1762959049942,-281.69069785,0.00031891,2]
[393740092,1762959049951,-200.0,0.000321,7]
[393740093,1762959049960,-560.0,0.00032114,2]
[393740094,1762959049970,-1247.5,0.00032249,2]
[393740095,1762959049979,-700.0,0.0003244,30]
[393740096,1762959049988,-321.28646688,0.00032612,2]
[393740097,1762959049997,-629.0,0.00032622,2]
[393740098,1762959050114,-2168.0,0.00032622,2]
[393740099,1762959050126,-660.0,0.00032662,2]
[393740100,1762959050136,-1304.94,0.000327,2]
[393740101,1762959050147,-416.79,0.000327,7]
[393740102,1762959050157,-8964.84,0.000327,7]
[393740103,1762959050167,-168.0,0.00032771,2]
[393740104,1762959050176,-151.0,0.000328,14]
[393740105,1762959050186,-151.82468821,0.000328,14]
[393740106,1762959050196,-500.0,0.00032877,60]
[393740107,1762959050205,-239.81046905,0.000329,120]
[393740108,1762959050215,-1041.51309709,0.000329,120]
[393740109,1762959050224,-160.25571579,0.000329,120]
[393740110,1762959050234,-205.11093346,0.000329,120]
[393740111,1762959050243,-642.57293376,0.0003299,2]
[393740112,1762959050252,-60243.01490188,0.00033,10]
[393740113,1762959050261,-88490.1985919,0.00033,2]
[393740114,1762959050270,-7958.20362954,0.00033,30]
[393740115,1762959050279,-151.0,0.00033,31]
[393740116,1762959050294,-151.0,0.00033,31]
[393740117,1762959050303,-151.0,0.00033,31]
[393740118,1762959050313,-291.216836,0.00033,31]
[393740119,1762959050322,-151.0,0.00033,30]
[393740120,1762959050331,-151.0,0.00033,30]
[393740121,1762959050341,-151.0,0.00033,30]
[393740122,1762959050350,-200.0,0.000331,7]
[393740123,1762959050359,-168.0,0.00033114,2]
[393740124,1762959050369,-239.49,0.0003315,14]
[393740125,1762959050379,-686.882002,0.00033165,2]
[393740126,1762959050389,-160.0,0.00033194,4]
[393740127,1762959050398,-760.0,0.0003321,2]
[393740128,1762959050407,-337.0904009,0.00033261,7]
[393740129,1762959050417,-307.891048,0.00033381,2]
[393740130,1762959050426,-161.950254,0.00033381,2]
[393740131,1762959050436,-168.0,0.00033429,2]
[393740132,1762959050445,-168.0,0.00033484,2]
[393740133,1762959050454,-131865.17425167,0.000335,2]
[393740134,1762959050463,-170.818064,0.000335,31]
[393740135,1762959050472,-170.818064,0.000335,31]
[393740136,1762959050481,-170.818064,0.000335,31]
[393740137,1762959050490,-170.818064,0.000335,31]
[393740138,1762959050499,-151.0,0.000335,31]
[393740139,1762959050508,-151.0,0.000335,31]
[393740140,1762959050517,-151.0,0.000335,31]
[393740141,1762959050528,-151.0,0.000335,30]
[393740142,1762959050541,-151.0,0.000335,30]
[393740143,1762959050550,-236.371695,0.000335,30]
[393740144,1762959050559,-201.43,0.0003351,7]
[393740145,1762959050569,-168.0,0.00033549,2]
[393740146,1762959050578,-168.0,0.0003355,2]
[393740147,1762959050588,-8173.26828693,0.00033583,2]
[393740148,1762959050597,-153.0,0.00033643,30]
[393740149,1762959050608,-153.0,0.00033643,30]
[393740150,1762959050621,-153.0,0.00033643,30]
[393740151,1762959050630,-153.0,0.00033643,30]
[393740152,1762959050639,-153.0,0.00033643,30]
[393740153,1762959050650,-153.0,0.00033643,30]
[393740154,1762959050659,-153.0,0.00033643,30]
[393740155,1762959050669,-153.0,0.00033643,30]
[393740156,1762959050679,-153.0,0.00033643,30]
[393740157,1762959050688,-153.0,0.00033643,30]
[393740158,1762959050698,-153.0,0.00033643,30]
[393740159,1762959050708,-153.0,0.00033643,30]
[393740160,1762959050717,-1663.33,0.00033651,2]
[393740161,1762959050726,-168.0,0.00033683,2]
[393740162,1762959050735,-239.49,0.00033698,15]
[393740163,1762959050744,-252.95,0.00033705,60]
[393740164,1762959050754,-460.0,0.00033758,2]
[393740165,1762959050763,-311.16995693,0.00033891,120]
[393740166,1762959050773,-1041.51309709,0.000339,120]
[393740167,1762959050782,-160.25571579,0.000339,120]
[393740168,1762959050794,-205.11093346,0.000339,120]
[393740169,1762959050804,-400.0,0.00034,120]
[393740170,1762959050813,-200.0,0.000341,7]
[393740171,1762959050822,-168.0,0.0003411,2]
[393740172,1762959050831,-168.0,0.00034195,2]
[393740173,1762959050840,-1304.94,0.000342,14]
[393740174,1762959050851,-416.79,0.000342,7]
[393740175,1762959050860,-8964.84,0.000342,14]
[393740176,1762959050870,-168.0,0.000342,2]
[393740177,1762959050879,-239.49,0.00034246,16]
[393740178,1762959050888,-1152.0,0.00034414,2]
[393740179,1762959050898,-153.0,0.00034465,30]
[393740180,1762959050907,-153.0,0.00034465,30]
[393740181,1762959050916,-153.0,0.00034465,30]
[393740182,1762959050926,-153.0,0.00034465,30]
[393740183,1762959050935,-153.0,0.00034465,30]
[393740184,1762959050945,-153.0,0.00034465,30]
[393740185,1762959050954,-153.0,0.00034465,30]
[393740186,1762959050967,-153.0,0.00034465,30]
[393740187,1762959050977,-307.9707659,0.00034465,30]
[393740188,1762959050986,-168.0,0.00034501,2]
[393740189,1762959050996,-160.0,0.00034503,5]
[393740190,1762959051005,-168.0,0.00034649,2]
[393740191,1762959051015,-200.0,0.0003467,120]
[393740192,1762959051024,-168.0,0.00034704,2]
[393740193,1762959051038,-348.2758212,0.00034739,30]
[393740194,1762959051047,-153.0,0.00034739,30]
[393740195,1762959051057,-153.0,0.00034739,30]
[393740196,1762959051066,-239.49,0.00034794,17]
[393740197,1762959051075,-168.0,0.00034802,2]
[393740198,1762959051085,-1041.51309709,0.000349,120]
[393740199,1762959051095,-160.25571579,0.000349,120]
[393740200,1762959051105,-205.11093346,0.000349,120]
[393740201,1762959051115,-600.0,0.00034969,7]
[393740202,1762959051125,-500.0,0.00035,2]
[393740203,1762959051135,-500.0,0.00035,10]
[393740204,1762959051145,-250.0,0.00035,7]
[393740205,1762959051154,-2079.16,0.00035054,2]
[393740206,1762959051164,-999.0,0.00035068,120]
[393740207,1762959051174,-2387.67044345,0.00035093,2]
[393740208,1762959051184,-200.0,0.000351,7]
[393740209,1762959051194,-600.0,0.00035148,2]
[393740210,1762959051203,-168.0,0.00035287,2]
[393740211,1762959051213,-168.0,0.00035291,2]
[393740212,1762959051222,-239.49,0.00035342,18]
[393740213,1762959051232,-600.0,0.00035515,2]
[393740214,1762959051241,-151.0,0.00035616,31]
[393740215,1762959051251,-151.0,0.00035616,31]
[393740216,1762959051259,-151.0,0.00035616,31]
[393740217,1762959051268,-151.0,0.00035616,31]
[393740218,1762959051278,-151.0,0.00035616,31]
[393740219,1762959051290,-151.0,0.00035616,31]
[393740220,1762959051299,-151.0,0.00035616,31]
[393740221,1762959051308,-151.0,0.00035616,31]
[393740222,1762959051317,-629.0,0.00035622,2]
[393740223,1762959051327,-2168.0,0.00035622,2]
[393740224,1762959051337,-168.0,0.00035687,2]
[393740225,1762959051346,-168.0,0.00035699,2]
[393740226,1762959051356,-307.891048,0.00035732,30]
[393740227,1762959051366,-168.0,0.00035756,2]
[393740228,1762959051377,-600.0,0.00035791,7]
[393740229,1762959051387,-160.0,0.00035812,6]
[393740230,1762959051397,-989.06423184,0.00035881,2]
[393740231,1762959051407,-239.49,0.0003589,19]
[393740232,1762959051416,-340.64921601,0.00035891,120]
[393740233,1762959051427,-1041.51309709,0.000359,120]
[393740234,1762959051436,-307.891048,0.00035924,30]
[393740235,1762959051446,-2000.0,0.00036,20]
[393740236,1762959051455,-643.0,0.00036,120]
[393740237,1762959051465,-400.0,0.00036,120]
[393740238,1762959051474,-170.16,0.00036,60]
[393740239,1762959051484,-500.0,0.00036,10]
[393740240,1762959051493,-500.0,0.00036,10]
[393740241,1762959051503,-168.7284875,0.00036082,30]
[393740242,1762959051512,-307.891048,0.00036116,30]
[393740243,1762959051523,-999.0,0.00036164,120]
[393740244,1762959051532,-629.36622231,0.000362,5]
[393740245,1762959051546,-202.0,0.0003629,43]
[393740246,1762959051556,-3000.0,0.000363,27]
[393740247,1762959051565,-307.891048,0.00036308,30]
[393740248,1762959051576,-3000.0,0.0003631,27]
[393740249,1762959051586,-3000.0,0.0003632,27]
[393740250,1762959051596,-3000.0,0.0003633,27]
[393740251,1762959051610,-646.23,0.0003634,120]
[393740252,1762959051620,-3000.0,0.0003634,27]
[393740253,1762959051632,-307.891048,0.00036346,60]
[393740254,1762959051642,-3000.0,0.0003635,27]
[393740255,1762959051654,-3000.0,0.0003636,27]
[393740256,1762959051664,-3000.0,0.0003637,27]
[393740257,1762959051675,-3000.0,0.0003638,27]
[393740258,1762959051687,-1021.0,0.00036383,20]
[393740259,1762959051698,-100206.1128445,0.00036383,7]
[393740260,1762959051709,-5519.18277004,0.00036383,7]
[393740261,1762959051719,-5342.79896548,0.00036383,7]
[393740262,1762959051729,-87465.77179642,0.00036383,2]
[393740263,1762959051741,-300.0,0.00036383,2]
[393740264,1762959051752,-22806.08655502,0.00036383,2]
[393740265,1762959051762,-3907.93867816,0.00036383,2]
[393740266,1762959051773,-814.8039967,0.00036383,2]
[393740267,1762959051783,-259.82778952,0.00036383,2]
[393740268,1762959051799,-2105.5335509,0.00036383,2]
[393740269,1762959051810,-80410.52383087,0.00036383,5]
[393740270,1762959051820,-52046.04237988,0.00036383,2]
[393740271,1762959051830,-111949.13104207,0.00036383,2]
[393740272,1762959051840,-30636.76861999,0.00036383,2]
[393740273,1762959051850,-1202.52481151,0.00036383,2]
[393740274,1762959051860,-1023.65529943,0.00036383,7]
[393740275,1762959051871,-123943.66917597,0.00036383,2]
[393740276,1762959051882,-100880.42305684,0.00036383,2]
[393740277,1762959051893,-3789.49663531,0.00036383,2]
[393740278,1762959051904,-1952.66204852,0.00036383,5]
[393740279,1762959051914,-2971.78372595,0.00036383,2]
[393740280,1762959051925,-2086.88586849,0.00036383,2]
[393740281,1762959051935,-250.0,0.00036383,10]
[393740282,1762959051946,-485.587155,0.00036383,10]
[393740283,1762959051956,-151.0,0.00036383,31]
[393740284,1762959051966,-151.0,0.00036383,31]
[393740285,1762959051976,-151.0,0.00036383,31]
[393740286,1762959051986,-151.0,0.00036383,31]
[393740287,1762959051996,-151.0,0.00036383,31]
[393740288,1762959052006,-151.0,0.00036383,31]
[393740289,1762959052015,-151.0,0.00036383,31]
[393740290,1762959052025,-151.0,0.00036383,31]
[393740291,1762959052039,-151.0,0.00036383,31]
[393740292,1762959052049,-151.0,0.00036383,31]
[393740293,1762959052059,-151.0,0.00036383,31]
[393740294,1762959052069,-151.0,0.00036383,31]
[393740295,1762959052079,-151.0,0.00036383,31]
[393740296,1762959052090,-151.0,0.00036383,31]
[393740297,1762959052100,-151.0,0.00036383,31]
[393740298,1762959052110,-151.0,0.00036383,31]
[393740299,1762959052120,-160.702661,0.00036383,31]
[393740300,1762959052130,-151.0,0.00036383,30]
[393740301,1762959052140,-151.0,0.00036383,30]
[393740302,1762959052151,-151.0,0.00036383,30]
[393740303,1762959052160,-151.0,0.00036383,30]
[393740304,1762959052170,-151.0,0.00036383,30]
[393740305,1762959052180,-151.0,0.00036383,30]
[393740306,1762959052190,-3000.0,0.0003639,27]
[393740307,1762959052200,-151.0,0.000364,120]
[393740308,1762959052209,-250.0,0.000364,14]
[393740309,1762959052219,-250.0,0.000364,14]
[393740310,1762959052229,-251.6,0.000364,14]
[393740311,1762959052326,-3000.0,0.000364,27]
[393740312,1762959052336,-150.0,0.000364,2]
[393740313,1762959052348,-1000.0,0.000364,21]
[393740314,1762959052359,-3000.0,0.0003641,27]
[393740315,1762959052368,-3000.0,0.0003642,27]
[393740316,1762959052378,-3764.840973,0.0003643,27]
[393740317,1762959052387,-170.818064,0.0003643,31]
[393740318,1762959052397,-170.818064,0.0003643,31]
[393740319,1762959052406,-170.818064,0.0003643,31]
[393740320,1762959052416,-170.818064,0.0003643,31]
[393740321,1762959052425,-151.0,0.0003643,31]
[393740322,1762959052435,-239.49,0.00036438,20]
[393740323,1762959052444,-378.9758365,0.0003644,20]
[393740324,1762959052453,-4000.0,0.0003644,20]
[393740325,1762959052463,-4000.0,0.0003644,20]
[393740326,1762959052473,-4000.0,0.0003644,20]
[393740327,1762959052482,-4000.0,0.0003644,20]
[393740328,1762959052491,-4000.0,0.0003644,20]
[393740329,1762959052501,-4000.0,0.0003644,20]
[393740330,1762959052510,-4000.0,0.0003644,20]
[393740331,1762959052519,-4000.0,0.0003644,20]
[393740332,1762959052530,-4000.0,0.0003644,20]
[393740333,1762959052543,-4000.0,0.0003644,20]
[393740334,1762959052553,-4000.0,0.0003644,20]
[393740335,1762959052562,-4000.0,0.0003644,20]
[393740336,1762959052573,-4000.0,0.0003644,20]
[393740337,1762959052583,-4000.0,0.0003644,20]
[393740338,1762959052592,-4000.0,0.0003644,20]
[393740339,1762959052603,-4000.0,0.0003644,20]
[393740340,1762959052614,-4000.0,0.0003644,20]
[393740341,1762959052625,-4000.0,0.0003644,20]
[393740342,1762959052635,-4000.0,0.0003644,20]
[393740343,1762959052647,-4000.0,0.0003644,20]
[393740344,1762959052656,-4000.0,0.0003644,20]
[393740345,1762959052666,-4000.0,0.0003644,20]
[393740346,1762959052676,-4000.0,0.0003644,20]
[393740347,1762959052686,-4000.0,0.0003644,20]
[393740348,1762959052699,-4000.0,0.0003644,20]
[393740349,1762959052708,-4000.0,0.0003644,20]
[393740350,1762959052718,-4000.0,0.0003644,20]
[393740351,1762959052728,-4000.0,0.0003644,20]
[393740352,1762959052738,-4000.0,0.0003644,20]
[393740353,1762959052748,-4000.0,0.0003644,20]
[393740354,1762959052758,-4000.0,0.0003644,20]
[393740355,1762959052767,-4000.0,0.0003644,20]
[393740356,1762959052778,-4000.0,0.0003644,20]
[393740357,1762959052794,-4000.0,0.0003644,20]
[393740358,1762959052805,-4000.0,0.0003644,20]
[393740359,1762959052815,-4000.0,0.0003644,20]
[393740360,1762959052825,-4000.0,0.0003644,20]
[393740361,1762959052835,-4000.0,0.0003644,20]
[393740362,1762959052845,-4000.0,0.0003644,20]
[393740363,1762959052854,-4000.0,0.0003644,20]
[393740364,1762959052864,-4000.0,0.0003644,20]
[393740365,1762959052873,-4000.0,0.0003644,20]
[393740366,1762959052882,-4000.0,0.0003644,20]
[393740367,1762959052892,-4000.0,0.0003644,20]
[393740368,1762959052901,-170.818064,0.0003644,31]
[393740369,1762959052911,-170.818064,0.0003644,31]
[393740370,1762959052921,-170.818064,0.0003644,31]
[393740371,1762959052933,-170.818064,0.0003644,31]
[393740372,1762959052943,-151.0,0.0003644,31]
[393740373,1762959052955,-78784.0,0.00036447,30]
[393740374,1762959052965,-170.818064,0.00036447,31]
[393740375,1762959052977,-170.818064,0.00036447,31]
[393740376,1762959052987,-170.818064,0.00036447,31]
[393740377,1762959052997,-170.818064,0.00036447,31]
[393740378,1762959053007,-170.818064,0.00036447,31]
[393740379,1762959053019,-170.818064,0.00036447,31]
[393740380,1762959053031,-170.818064,0.00036447,31]
[393740381,1762959053051,-170.818062,0.00036447,31]
[393740382,1762959053064,-2494.99,0.00036456,2]
[393740383,1762959053076,-307.891048,0.000365,30]
[393740384,1762959053089,-161.950254,0.000365,30]
[393740385,1762959053103,-500.0,0.00036554,13]
[393740386,1762959053114,-500.0,0.00036554,13]
[393740387,1762959053125,-1653.963112,0.000366,21]
[393740388,1762959053135,-307.891048,0.00036602,2]
[393740389,1762959053146,-161.950254,0.00036602,2]
[393740390,1762959053157,-600.0,0.00036613,7]
[393740391,1762959053168,-168.97377603,0.00036656,20]
[393740392,1762959053178,-500.0,0.00036667,7]
[393740393,1762959053189,-200000.0,0.00036668,2]
[393740394,1762959053199,-307.891048,0.00036705,60]
[393740395,1762959053210,-200.0,0.00036895,120]
[393740396,1762959053220,-200.0,0.00036895,120]
[393740397,1762959053231,-200.0,0.00036895,120]
[393740398,1762959053241,-5000.0,0.000369,7]
[393740399,1762959053251,-150.59,0.0003696,60]
[393740400,1762959053262,-239.49,0.00036986,21]
[393740401,1762959053272,-204.77591399,0.00037,120]
[393740402,1762959053282,-4150.08788561,0.00037,2]
[393740403,1762959053297,-1041.51309709,0.00037,120]
[393740404,1762959053308,-1674.01543463,0.00037,2]
[393740405,1762959053317,-722.0,0.00037,10]
[393740406,1762959053328,-150.59,0.0003706,60]
[393740407,1762959053337,-307.891048,0.00037064,60]
[393740408,1762959053347,-394.9872363,0.00037078,30]
[393740409,1762959053357,-160.0,0.00037121,7]
[393740410,1762959053368,-319.16384483,0.00037121,5]
[393740411,1762959053377,-200.0,0.00037158,120]
[393740412,1762959053388,-200.0,0.00037158,120]
[393740413,1762959053397,-200.0,0.00037158,120]
[393740414,1762959053407,-150.59,0.0003716,60]
[393740415,1762959053417,-150.59,0.0003726,60]
[393740416,1762959053426,-961.0,0.00037283,2]
[393740417,1762959053436,-600.0,0.00037344,30]
[393740418,1762959053446,-150.59,0.0003736,60]
[393740419,1762959053456,-477.0,0.00037383,30]
[393740420,1762959053466,-5000.0,0.00037398,4]
[393740421,1762959053477,-150.0,0.000374,2]
[393740422,1762959053487,-307.891048,0.00037424,60]
[393740423,1762959053497,-600.0,0.00037435,7]
[393740424,1762959053507,-150.59,0.0003746,60]
[393740425,1762959053516,-392.187268,0.0003748,30]
[393740426,1762959053526,-239.49,0.00037534,22]
[393740427,1762959053540,-150.59,0.0003756,60]
[393740428,1762959053549,-500.0,0.0003759,15]
[393740429,1762959053559,-500.0,0.0003759,7]
[393740430,1762959053569,-2307.35210501,0.00037595,20]
[393740431,1762959053579,-40000.0,0.00037596,20]
[393740432,1762959053588,-155.01,0.000376,30]
[393740433,1762959053598,-416.79,0.000376,7]
[393740434,1762959053612,-23344.76394713,0.00037601,20]
[393740435,1762959053622,-1848.3786945,0.0003761,20]
[393740436,1762959053632,-150.59,0.0003766,60]
[393740437,1762959053642,-200.0,0.00037662,120]
[393740438,1762959053654,-200.0,0.00037662,120]
[393740439,1762959053664,-200.0,0.00037662,120]
[393740440,1762959053674,-8964.84,0.000377,14]
[393740441,1762959053686,-150.59,0.0003776,60]
[393740442,1762959053696,-307.891048,0.00037783,60]
[393740443,1762959053706,-161.950254,0.00037783,60]
[393740444,1762959053716,-1017.87766928,0.000378,2]
[393740445,1762959053727,-392.612098,0.0003782,2]
[393740446,1762959053737,-2910.82,0.00037858,2]
[393740447,1762959053748,-150.59,0.0003786,60]
[393740448,1762959053758,-370.12847508,0.00037891,120]
[393740449,1762959053769,-151.0,0.000379,120]
[393740450,1762959053779,-964.1044561,0.00037924,30]
[393740451,1762959053792,-150.59,0.0003796,60]
[393740452,1762959053801,-200.0,0.00038,120]
[393740453,1762959053812,-593.1179572,0.00038037,30]
[393740454,1762959053823,-593.1179572,0.00038037,30]
[393740455,1762959053832,-593.1179572,0.00038037,30]
[393740456,1762959053843,-593.1179572,0.00038037,30]
[393740457,1762959053853,-150.59,0.0003806,60]
[393740458,1762959053864,-239.49,0.00038082,23]
[393740459,1762959053874,-150.59,0.0003816,60]
[393740460,1762959053885,-600.0,0.00038257,7]
[393740461,1762959053894,-150.59,0.0003826,60]
[393740462,1762959053904,-150.59,0.0003836,120]
[393740463,1762959053913,-150.59,0.0003846,120]
[393740464,1762959053924,-1304.94,0.000385,14]
[393740465,1762959053933,-416.79,0.000385,7]
[393740466,1762959053943,-8964.84,0.000385,14]
[393740467,1762959053952,-150.59,0.0003856,120]
[393740468,1762959053962,-1304.94,0.000386,14]
[393740469,1762959053971,-621.0,0.00038622,2]
[393740470,1762959053981,-2160.0,0.00038622,2]
[393740471,1762959053991,-239.49,0.0003863,24]
[393740472,1762959054000,-150.59,0.0003866,120]
[393740473,1762959054011,-300.2064069,0.00038746,30]
[393740474,1762959054022,-350.5661799,0.00038746,30]
[393740475,1762959054032,-300.2064069,0.00038746,30]
[393740476,1762959054044,-310.3110486,0.00038746,30]
[393740477,1762959054053,-164.1285603,0.00038746,30]
[393740478,1762959054063,-202.0,0.0003875,50]
[393740479,1762959054073,-150.59,0.0003876,120]
[393740480,1762959054083,-500.0,0.00038767,30]
[393740481,1762959054092,-416.79,0.000388,7]
[393740482,1762959054102,-8964.84,0.000388,14]
[393740483,1762959054112,-150.59,0.0003886,120]
[393740484,1762959054122,-520.0,0.00038889,15]
[393740485,1762959054132,-164.1285603,0.00038905,30]
[393740486,1762959054143,-150.59,0.0003896,120]
[393740487,1762959054151,-255.9424678,0.00039,120]
[393740488,1762959054159,-161.04855643,0.00039,60]
[393740489,1762959054168,-150.59,0.0003906,120]
[393740490,1762959054177,-150.59,0.0003916,120]
[393740491,1762959054185,-239.49,0.00039178,25]
[393740492,1762959054194,-150.59,0.0003926,120]
[393740493,1762959054203,-151.0,0.000393,120]
[393740494,1762959054213,-3326.65,0.00039307,2]
[393740495,1762959054223,-150.59,0.0003936,120]
[393740496,1762959054233,-2387.67044345,0.00039379,2]
[393740497,1762959054243,-150.59,0.0003946,120]
[393740498,1762959054254,-150.97,0.00039469,120]
[393740499,1762959054263,-150.59,0.0003956,120]
[393740500,1762959054273,-326.4943933,0.00039567,30]
[393740501,1762959054283,-164.1285603,0.00039567,30]
[393740502,1762959054295,-163.6420468,0.00039567,30]
[393740503,1762959054305,-686.882002,0.00039654,2]
[393740504,1762959054314,-150.59,0.0003966,120]
[393740505,1762959054324,-239.49,0.00039726,26]
[393740506,1762959054333,-150.59,0.0003976,120]
[393740507,1762959054413,-150.59,0.0003986,120]
[393740508,1762959054433,-399.60773416,0.00039891,120]
[393740509,1762959054443,-600.0,0.00039901,7]
[393740510,1762959054453,-153.0,0.00039955,30]
[393740511,1762959054463,-153.0,0.00039955,30]
[393740512,1762959054473,-153.0,0.00039955,30]
[393740513,1762959054483,-153.0,0.00039955,30]
[393740514,1762959054492,-153.0,0.00039955,30]
[393740515,1762959054502,-150.59,0.0003996,120]
[393740516,1762959054512,-400.52932381,0.00039999,31]
[393740517,1762959054521,-435.14898882,0.00039999,31]
[393740518,1762959054531,-404.42625346,0.00039999,31]
[393740519,1762959054543,-500.0,0.00039999,31]
[393740520,1762959054552,-500.0,0.00039999,7]
[393740521,1762959054562,-447.65040863,0.00039999,31]
[393740522,1762959054572,-490.28208662,0.00039999,31]
[393740523,1762959054581,-500.0,0.00039999,7]
[393740524,1762959054592,-500.0,0.00039999,7]
[393740525,1762959054602,-357.34042732,0.00039999,7]
[393740526,1762959054612,-500.0,0.00039999,7]
[393740527,1762959054626,-434.3717825,0.00039999,7]
[393740528,1762959054636,-500.0,0.00039999,7]
[393740529,1762959054647,-2000.0,0.0004,21]
[393740530,1762959054658,-227.3851547,0.0004,2]
[393740531,1762959054669,-500.0,0.0004,2]
[393740532,1762959054679,-200.0,0.0004,120]
[393740533,1762959054689,-17337.40526877,0.0004,120]
[393740534,1762959054702,-500.0,0.0004,60]
[393740535,1762959054711,-200.0,0.0004,120]
[393740536,1762959054722,-4150.08788561,0.0004,120]
[393740537,1762959054731,-1157.0,0.0004,26]
[393740538,1762959054741,-848.10741614,0.0004,120]
[393740539,1762959054751,-980.03288786,0.0004,120]
[393740540,1762959054761,-341.6018726,0.0004,120]
[393740541,1762959054771,-55951.730168,0.0004,30]
[393740542,1762959054781,-20031.17207403,0.0004,2]
[393740543,1762959054798,-500.0,0.0004,2]
[393740544,1762959054809,-250.0,0.0004,7]
[393740545,1762959054819,-1304.94,0.0004,14]
[393740546,1762959054828,-416.79,0.0004,7]
[393740547,1762959054839,-8964.84,0.0004,14]
[393740548,1762959054849,-150.59,0.0004006,120]
[393740549,1762959054860,-150.59,0.0004016,120]
[393740550,1762959054872,-150.59,0.0004026,120]
[393740551,1762959054882,-239.49,0.00040273,27]
[393740552,1762959054892,-1304.94,0.000403,14]
[393740553,1762959054902,-164.1285603,0.00040321,30]
[393740554,1762959054913,-164.1285603,0.00040321,30]
[393740555,1762959054923,-164.1285603,0.00040321,30]
[393740556,1762959054933,-150.59,0.0004036,120]
[393740557,1762959054943,-150.59,0.0004046,120]
[393740558,1762959054953,-4612.34,0.0004056,12]
[393740559,1762959054963,-150.59,0.0004056,120]
[393740560,1762959054973,-150.59,0.0004066,120]
[393740561,1762959054983,-150.0,0.000407,5]
[393740562,1762959054992,-3742.49,0.00040711,2]
[393740563,1762959055002,-394.9872363,0.00040738,30]
[393740564,1762959055012,-394.9872363,0.00040738,30]
[393740565,1762959055022,-394.9872363,0.00040738,30]
[393740566,1762959055032,-150.59,0.0004076,120]
[393740567,1762959055046,-151.0,0.000408,120]